Cogmind - Beta 9.6 @@@ ROGUE MODE // 2020.05.27 @ 17:02:49 Player: Gavin Result: Destroyed by G-47 Trooper with Particle Gun Performance ------------- Evolutions (2) 1000 Regions Visited (5) 1000 Robots Destroyed (17) 85 Value Destroyed (363) 363 Prototype IDs (22) 440 Alien Tech Used (0) 0 Bonus (300) 300 TOTAL SCORE: 3188 Bonus ------- Aligned with FarCom 300 Cogmind --------- Core Integrity 0/550 Matter 300/300 Energy 100/100 System Corruption 4% Temperature Cool (9) Movement Core (50) Location -8/Materials Parts ------- > --- POWER (2) -------- (None) > --- PROPULSION (3) --- (None) > --- UTILITY (4) ------ Enhanced Optical Array Signal Interpreter > --- WEAPON (2) ------- (None) > --- INVENTORY (4) ---- Aluminum Leg Peak State ------------ > --- POWER ------------ Ion Engine Micro Nuclear Core > --- PROPULSION ------- Hover Unit Hover Unit Hover Unit > --- UTILITY ---------- Small Storage Unit Enhanced Optical Array Signal Interpreter Core Shielding > --- WEAPON ----------- YOLO Cannon > --- INVENTORY -------- Aluminum Leg Mining Laser [Rating: 35] Favorites ----------- Power Ion Engine Engine Ion Engine Power Core Micro Nuclear Core Propulsion Hover Unit Treads Light Treads Leg Aluminum Leg Hover Unit Hover Unit Utility Signal Interpreter Device Shield Generator Storage Small Storage Unit Processor Signal Interpreter Protection Core Shielding Weapon YOLO Cannon Energy Gun Small Laser Energy Cannon YOLO Cannon Ballistic Gun Light Assault Rifle Special Weapon Mining Laser Build | -11 -10 -10 -10 -9 -8 ------- Run | Scr Mat Min Exi Min Mat Slots Evolved 4 | . . . . . 4 Power 1 | . . . . . 1 Propulsion 1 | . . . . . 1 Utility 2 | . . . . . 2 Weapon . | . . . . . . Parts Attached 21 | 6 6 . 1 . 8 Power 2 | 1 . . . . 1 Engine 1 | 1 . . . . . Core 1 | . . . . . 1 Reactor . | . . . . . . Propulsion 6 | 2 2 . . . 2 Treads 1 | . . . . . 1 Leg 2 | 2 . . . . . Wheel . | . . . . . . Hover 3 | . 2 . . . 1 Flight . | . . . . . . Utility 5 | 1 1 . . . 3 Device 1 | . . . . . 1 Storage 1 | 1 . . . . . Processor 2 | . 1 . . . 1 Hackware . | . . . . . . Protection 1 | . . . . . 1 Artifact . | . . . . . . Weapon 8 | 2 3 . 1 . 2 Energy Gun 2 | 1 1 . . . . Energy Cannon 1 | . . . 1 . . Ballistic Gun 2 | 1 . . . . 1 Ballistic Cannon . | . . . . . . Launcher . | . . . . . . Special Weapon 3 | . 2 . . . 1 Impact Weapon . | . . . . . . Slashing Weapon . | . . . . . . Piercing Weapon . | . . . . . . Special Melee Weapon . | . . . . . . Unidentified Prototypes 1 | . . . 1 . . Parts Lost 12 | . 1 . . . 11 Power 2 | . . . . . 2 Propulsion 4 | . . . . . 4 Utility 2 | . . . . . 2 Weapon 4 | . 1 . . . 3 Highest Loss Streak 3 | . 1 . . . 3 Average Slot Usage (%) 79 | . 85 100 92 85 56 Engine 10 | . 14 14 14 14 1 Core 2 | . . . . . 7 Leg 2 | . 17 . . . . Hover 20 | . 10 28 28 28 10 Storage 10 | . 14 14 14 14 1 Processor 13 | . 4 14 14 14 17 Protection 2 | . . . . . 7 Energy Gun 1 | . 9 . . . . Energy Cannon 6 | . . . 7 14 4 Ballistic Gun 1 | . 7 . . . 1 Special Weapon 6 | . 6 28 13 . . Naked Turns . | . . . . . . Heaviest Build 34 | 11 12 11 27 27 34 Greatest Support 20 | 20 20 12 12 12 20 Greatest Overweight (x) 8 | 1 . . 2 2 8 Average Overweight (x) . | . . . . 2 1 Largest Inventory Capacity 6 | 6 6 6 6 6 6 Average Capacity 5 | 5 6 6 6 6 4 Most Carried 6 | . 5 6 6 4 3 Average Carried 3 | . 1 5 4 4 2 Final Capacity 6 | 6 6 6 6 6 4 Final Carried 6 | . 5 6 4 4 1 Class Distribution -------------------- 100% | Mutant Dominant Class ---------------- Mutant | -10/Materials Mutant | -10/Mines Mutant | -10/Exiles Mutant | -9/Mines Mutant | -8/Materials Resources | -11 -10 -10 -10 -9 -8 ----------- Run | Scr Mat Min Exi Min Mat Matter Collected 369 | 218 56 38 . 37 20 Remotely . | . . . . . . Salvage Created 326 | . 102 . . 15 209 Parts 21 | . 5 . . 4 12 Haulers Intercepted . | . . . . . . Recyclers Shooed . | . . . . . . Parts Field Recycled . | . . . . . . Retrieved Matter . | . . . . . . Parts Self-Destructed . | . . . . . . Prevented . | . . . . . . Kills | -11 -10 -10 -10 -9 -8 ------- Run | Scr Mat Min Exi Min Mat Combat Hostiles Destroyed 12 | . 2 . . 4 6 Guns 2 | . 2 . . . . Cannons 2 | . . . . . 2 AOE 8 | . . . . 4 4 Classes Destroyed 7 | . 2 . . 1 4 Builder 2 | . . . . . 2 Recycler 1 | . . . . . 1 Watcher 2 | . 1 . . . 1 Swarmer 7 | . . . . 4 3 Grunt 2 | . 2 . . . . Sentry 2 | . . . . . 2 Hunter 1 | . . . . . 1 Best Kill Streak 6 | . 2 . . 4 6 Combat Bots Only 6 | . 1 . . 4 6 Max Kills in Single Turn 3 | . 1 . . 3 3 Gunslinging . | . . . . . . Exploded 3 | . . . . 3 2 Melee . | . . . . . . Uniques/NPCs Destroyed . | . . . . . . Combat | -11 -10 -10 -10 -9 -8 -------- Run | Scr Mat Min Exi Min Mat Damage Taken 1819 | . 377 . . 183 1259 Core 681 | . 109 . . 17 555 Absorbed by Shields 32 | . . . . . 32 Core Remaining (%) 74 | 100 . . . 49 . Volleys Fired 42 | . 24 . . 3 15 Largest 2 | . 2 . . 1 1 Hottest 100 | . 70 . . 100 100 Shots Fired 52 | . 34 . . 3 15 Gun 43 | . 34 . . . 9 Cannon 9 | . . . . 3 6 Launcher . | . . . . . . Special . | . . . . . . Kinetic 33 | . 24 . . . 9 Thermal 19 | . 10 . . 3 6 Explosive . | . . . . . . Electromagnetic . | . . . . . . Robot Hit Streak 8 | . 8 . . . 5 Robot Miss Streak 3 | . 3 . . 1 3 Penetration Max . | . . . . . . Secondary Targets . | . . . . . . Shots Hit Robots 31 | . 25 . . . 6 Core Hits 35 | . 7 . . 4 24 Critical Hits . | . . . . . . Critical Kills . | . . . . . . Critical Parts Destroyed . | . . . . . . Melee Attacks . | . . . . . . Impact . | . . . . . . Slashing . | . . . . . . Piercing . | . . . . . . Sneak Attacks . | . . . . . . Combat Hostiles . | . . . . . . Follow-up Attacks . | . . . . . . Damage Inflicted 1903 | . 210 . . 399 1294 Guns 224 | . 210 . . . 14 Cannons 680 | . . . . 88 592 Explosions 946 | . . . . 311 635 Melee . | . . . . . . Ramming 53 | . . . . . 53 Kinetic 155 | . 141 . . . 14 Thermal 1695 | . 69 . . 399 1227 Explosive . | . . . . . . Electromagnetic . | . . . . . . Impact . | . . . . . . Slashing . | . . . . . . Piercing . | . . . . . . Highest Corruption 4 | . . . . . 4 Average Corruption 2 | . . . . . 2 Corruption Purged . | . . . . . . Effects 3 | . . . . . 3 Message Errors 1 | . . . . . 1 Heat Flow Errors 1 | . . . . . 1 Data Loss (minor) 1 | . . . . . 1 Overload Shots . | . . . . . . Overflow Damage 419 | . . . . 113 306 Projectiles 277 | . . . . 48 229 Explosions 142 | . . . . 65 77 Melee . | . . . . . . Knockbacks . | . . . . . . Impact . | . . . . . . Kinetic . | . . . . . . Secondary . | . . . . . . Self-Inflicted Damage 273 | . . . . 65 208 Shots 4 | . . . . 1 3 Rammed 24 | . . . . . 24 Targets Rammed 24 | . . . . . 24 Kicked . | . . . . . . Crushed . | . . . . . . Highest Temperature 124 | . 124 . . 104 112 Average Temperature 44 | . 57 . . 58 20 Received Heat Transfer 639 | . 210 . . . 429 Siege Activations . | . . . . . . Robots Corrupted . | . . . . . . Combat Hostiles . | . . . . . . Parts Fried . | . . . . . . Impact Corruptions . | . . . . . . Robots Melted . | . . . . . . Combat Hostiles . | . . . . . . Parts Melted . | . . . . . . Heat Transferred 1614 | . 174 . . 320 1120 Parts Sabotaged . | . . . . . . Parts Stolen . | . . . . . . Parts Stripped . | . . . . . . Power Chain Reactions . | . . . . . . Missiles Intercepted . | . . . . . . Alert | -11 -10 -10 -10 -9 -8 ------- Run | Scr Mat Min Exi Min Mat Peak Influence 274 | . 72 27 . 90 274 Average Influence 87 | . 38 27 . 83 133 Maximum Alert Level 1 | . . . . . 1 Low Security (%) 81 | 100 100 100 . 100 54 Level 1 18 | . . . . . 45 Level 2 . | . . . . . . Level 3 . | . . . . . . Level 4 . | . . . . . . Level 5 . | . . . . . . High Security . | . . . . . . Max Security . | . . . . . . Squads Dispatched 1 | . . . . . 1 Investigation . | . . . . . . Extermination . | . . . . . . Reinforcement 1 | . . . . . 1 Assault . | . . . . . . Garrison . | . . . . . . Intercept . | . . . . . . Construction Impeded . | . . . . . . Haulers Reinforced . | . . . . . . Stealth | -11 -10 -10 -10 -9 -8 --------- Run | Scr Mat Min Exi Min Mat Distress Signals 1 | . . . . . 1 Communications Jammed . | . . . . . . Distress Signals . | . . . . . . Times Spotted 17 | . 3 . . 4 10 Peak Tracking Total 6 | . 2 . . 4 6 Tactical Retreats . | . . . . . . Traps | -11 -10 -10 -10 -9 -8 ------- Run | Scr Mat Min Exi Min Mat Traps Triggered 1 | . . . . . 1 Indirectly . | . . . . . . Trap Hack Attempts . | . . . . . . Triggered . | . . . . . . Disarmed . | . . . . . . Reprogrammed . | . . . . . . Reused . | . . . . . . Traps Extracted . | . . . . . . Installed . | . . . . . . Triggered . | . . . . . . Machines | -11 -10 -10 -10 -9 -8 ---------- Run | Scr Mat Min Exi Min Mat Machines Disabled 1 | . . . . . 1 Max in Single Turn 1 | . . . . . 1 Machines Sabotaged . | . . . . . . Garrisons Compromised . | . . . . . . Overloaded Fab Kills . | . . . . . . Fab Network Shutdowns . | . . . . . . Hacking | -11 -10 -10 -10 -9 -8 --------- Run | Scr Mat Min Exi Min Mat Machines Accessed 4 | . 1 . 3 . . Terminals 1 | . 1 . . . . Fabricators . | . . . . . . Repair Stations . | . . . . . . Recycling Units . | . . . . . . Scanalyzers . | . . . . . . Garrison Access . | . . . . . . Total Hacks 32 | . 2 . 30 . . Successful 30 | . . . 30 . . Failed 2 | . 2 . . . . Catastrophic . | . . . . . . Database Lockouts . | . . . . . . Manual 5 | . . . 5 . . Terminals 2 | . 2 . . . . Fabricators . | . . . . . . Repair Stations . | . . . . . . Recycling Units . | . . . . . . Scanalyzers . | . . . . . . Garrison Access . | . . . . . . Terminal Hacks 30 | . . . 30 . . Record 29 | . . . 29 . . EX-Prototype ID Bank 1 | . . . 1 . . Fabricator Hacks . | . . . . . . Repair Station Hacks . | . . . . . . Recycling Unit Hacks . | . . . . . . Scanalyzer . | . . . . . . Garrison Access Hacks . | . . . . . . Unauthorized Hacks . | . . . . . . Terminals . | . . . . . . Fabricators . | . . . . . . Repair Stations . | . . . . . . Recycling Units . | . . . . . . Scanalyzers . | . . . . . . Garrison Access . | . . . . . . Data Cores Recovered . | . . . . . . Used . | . . . . . . Hacking Detections 1 | . 1 . . . . Full Trace Events . | . . . . . . Feedback Events . | . . . . . . Feedback Blocked . | . . . . . . Robot Schematics Acquired . | . . . . . . Robots Built . | . . . . . . Matter . | . . . . . . Time . | . . . . . . Total Robot Build Rating . | . . . . . . Part Schematics Acquired . | . . . . . . Parts Built . | . . . . . . Matter . | . . . . . . Time . | . . . . . . Total Part Build Rating . | . . . . . . Parts Repaired . | . . . . . . Time . | . . . . . . Parts Recycled . | . . . . . . Recycled Matter . | . . . . . . Retrieved Matter . | . . . . . . Retrieved Components . | . . . . . . Parts Scanalyzed . | . . . . . . Part Schematics Acquired . | . . . . . . Parts Damaged . | . . . . . . Bothacking | -11 -10 -10 -10 -9 -8 ------------ Run | Scr Mat Min Exi Min Mat Used RIF Installer . | . . . . . . Robots Hacked . | . . . . . . Non-combat . | . . . . . . Combat . | . . . . . . Robot Hacks Applied . | . . . . . . Relay Couplers Released . | . . . . . . Robots Rewired . | . . . . . . Allies Hacked . | . . . . . . Hacks Repelled . | . . . . . . Allies | -11 -10 -10 -10 -9 -8 -------- Run | Scr Mat Min Exi Min Mat Total Allies . | . . . . . . Largest Group . | . . . . . . Highest-Rated Group . | . . . . . . Highest-Rated Ally . | . . . . . . Total Orders . | . . . . . . Ally Attacks . | . . . . . . Total Damage . | . . . . . . Kills . | . . . . . . Allies Corrupted . | . . . . . . Allies Melted . | . . . . . . Intel | -11 -10 -10 -10 -9 -8 ------- Run | Scr Mat Min Exi Min Mat Robot Analysis Total . | . . . . . . Derelict Logs Recovered 1 | . . . . 1 . Drone Launches . | . . . . . . Drone Recoveries . | . . . . . . Exploration | -11 -10 -10 -10 -9 -8 ------------- Run | Scr Mat Min Exi Min Mat Turns Passed 1681 | 48 226 104 527 293 483 Spaces Moved 1270 | 36 204 160 482 158 230 Core 34 | 7 . . . . 27 Treads 50 | . . . . . 50 Legs 93 | 29 64 . . . . Wheels . | . . . . . . Hover 1093 | . 140 160 482 158 153 Flight . | . . . . . . Fastest Speed 50 | 50 56 56 56 176 50 Average Speed 107 | 110 76 56 95 176 148 Slowest Speed 450 | 120 120 56 176 176 450 Overloaded Moves . | . . . . . . Propulsion Burnouts . | . . . . . . Robots Hopped . | . . . . . . Cave-ins Triggered . | . . . . . . Exploration Rate (%) 40 | 4 36 42 72 59 29 Regions Visited 5 Branch Regions 3 Pre-discovered Areas 1 | . . . 1 . . Known Exits Taken 4 | . 1 1 1 1 . Unknown Exits Taken 1 | 1 . . . . . Scrap Searched 2 | . . 2 . . . Spaces Dug . | . . . . . . Terrain Destroyed 101 | . . . . 45 56 Melee . | . . . . . . Projectile 3 | . . . . 2 1 AOE 98 | . . . . 43 55 Actions | -11 -10 -10 -10 -9 -8 --------- Run | Scr Mat Min Exi Min Mat Total 1520 | 41 245 173 553 164 344 Wait 143 | . . 13 62 4 64 Move 1265 | 35 203 159 481 157 230 Hop . | . . . . . . Pick Up 15 | . 9 1 3 . 2 Fast Attach 10 | 6 1 . . . 3 Attach 8 | . 3 . 1 . 4 Detach . | . . . . . . Swap 3 | . 2 . . . 1 Drop 10 | . 3 . 6 . 1 Fire 42 | . 24 . . 3 15 Melee . | . . . . . . Ram 23 | . . . . . 23 Kick . | . . . . . . Crush 1 | . . . . . 1 Escape Stasis . | . . . . . . Rewire . | . . . . . . Trap . | . . . . . . Miscellaneous . | . . . . . . Route ------- -11/Scrapyard -10/Materials -10/Mines -10/Exiles -9/Mines -8/Materials (discovered 2 exits: Fac x2) History --------- Turn | Location | Event 16 | -11/Scrapyard | Discovered new exit (range 16) 49 | -11/Scrapyard | Entered Materials 178 | -10/Materials | Discovered new exit (range 16) 275 | -10/Materials | Identified exit to Mines 275 | -10/Materials | Entered Mines 287 | -10/Mines | Assembled infested the area 304 | -10/Mines | Build established: Mutant 354 | -10/Mines | Met 8R-AWN 373 | -10/Mines | Discovered new exit (range 5) 377 | -10/Mines | Identified exit to Exiles 379 | -10/Mines | Entered Exiles 398 | -10/Exiles | Welcomed by 8R-AWN 411 | -10/Exiles | Met EX-HEX 444 | -10/Exiles | Met EX-DEC 480 | -10/Exiles | Learned location of Zion (-7) 501 | -10/Exiles | Met EX-BIN 586 | -10/Exiles | Aligned with FarCom system 586 | -10/Exiles | Given EX-Vault access code 624 | -10/Exiles | Opened EX-Vault 627 | -10/Exiles | Found Prototype Energy Cannon 629 | -10/Exiles | Identified YOLO Cannon 690 | -10/Exiles | Warned to stay clear of 0b10 Research branches 878 | -10/Exiles | Discovered new exit (range 15) 903 | -10/Exiles | Identified exit to Mines 906 | -10/Exiles | Left Exiles lab with YOLO Cannon 906 | -10/Exiles | Entered Mines 926 | -9/Mines | Core integrity fell below 50% 1113 | -9/Mines | Learned 4 Materials zone layouts 1192 | -9/Mines | Discovered new exit (range 5) 1197 | -9/Mines | Identified exit to Materials 1199 | -9/Mines | Entered Materials 1199 | -8/Materials | Evolved 4 slots: Power x1, Propulsion x1, Utility x2 1200 | -8/Materials | Identified exit to Factory 1399 | -8/Materials | Lost 3 parts (2n1u) 1638 | -8/Materials | Core integrity fell below 50% 1652 | -8/Materials | Lost 3 parts (1p1u1w) 1667 | -8/Materials | Core integrity fell below 20% 1682 | -8/Materials | Destroyed by G-47 Trooper with Particle Gun Last Messages --------------- 01576_ Lgt. Treads destroyed. 01578_ R-06 Scavenger inserts Particle Cannon into recycling unit. 01581_ R-06 Scavenger inserts Lgt. Treads into recycling unit. 01582_ Recycling unit begins recycling process. 01594_ K-01 Serf cleans the Electrolysis Chamber. 01609_ Mic. Nuclear Core destroyed. 01619_ Core Shielding destroyed. 01621_ Minigun destroyed. 01623_ Electrolysis Chamber disabled. 01625_ U-05 Engineer lays Concrete. 01630_ U-05 Engineer builds a Door. 01634_ U-05 Engineer lays Concrete. 01659_ Slammed into G-47 Trooper. 01662_ Enh. Optical Array permanently disabled. 01662_ Destabilizing: Short circuit. 01663_ Slammed into G-47 Trooper. 01671_ K-01 Serf collects debris. 01672_ Slammed into G-47 Trooper. 01679_ Destabilizing: System corrupted (+2). 01680_ Slammed into G-47 Trooper. Map ----- +----------------------------------------------------+ | | | | | | | | | | | | | | | | | | | | | | | ??##############????????????????????????? | | ??# # ????????????????????????? | | ??# # " ????????????????????????? | | ### # T ????????????????????????? | | + # " ##############??????????? | | # # # + #??????????? | | # # # # #??????????? | | # ###########+### #??????????? | | # +??????????? | | # #??????Y???? | | # "" #??????????? | | ####### Y" #?####?????? | | ??????# """ """ "" ""% #?#!!##????? | | ####### """ "" "" %% %#?# !#????? | | # """ ""k """ % @%%%### !#????? | | """ # %%g !#????? | | """ + !#????? | | """ # !!##????? | | # ############+#+####?????? | | # #####+###?????# #????????? | | ####### #?# ??????# ] #????????? | | #?????# #?# ??????# #????????? | | #???### ### """ ??????# #????????? | | #???# # """ ??????# #????????? | | #???# #w""" !?????# #????????? | | ????# + ?????# #????????? | | ????# ########????# #????????? | | ###?# #???????????# ! #????????? | | ## # ###???????????##########????????? | | ####################????????????? | | # ! ## #????????????? | | # ## #????????????? | | % % *!!## """ #????????????? | | ! *!!## """"" #????????????? | | # *! ## """"" #????????????? | | ## """"" #????????????? | | ### +####### """ #????????????? | | ###### #?????# #????????????? | | + #?????# #????????????? | +----------------------------------------------------+ Best States ------------- Heat Dissipation 31 Energy Generation 20 Energy Capacity 300 Matter Stores 300 Matter Capacity 300 Sight Range 22 Terrain Scan Density 10 Core Shielding 20 Evasion (%) 53 Recoil Reduction 1 Item Schematics ----------------- None Robot Schematics ------------------ None Fabricated ------------ Nothing Alien Tech Used ----------------- None Achievements -------------- None Challenges ------------ None Game ------ Seed BiomechanicalCannonWheel Manual? 0 Play Time 00:21:03 Cumulative 15.4 hours Start 2020.05.27 @ 16:45:01 End 2020.05.27 @ 17:02:49 Sessions 1 Manual Loads 0 Difficulty Rogue Special Mode None Game No. 27 Rogue 27 Adventurer 0 Explorer 0 Win Type - Total 0 Types 0/0/0/0/0/0/0 Lore% 12 Gallery% 26 Achievement% 20 Wizard Run 0 Options --------- ASCII 1 Keyboard 0 Movement Numpad Keybinds 0 Fullscreen 2 Font 18/X11Bold Map View 76x50 Tactical HUD 1 Map Filters NONE Filters NONE Steam 1 RUN: 0646d901-cbb1-4d0a-a041-3c6190154835